fUST/lending_fUST_20250701
["ID","MTS","AMOUNT","RATE_DAILY","PERIOD"]
[368833731,1751375456614,-460.0,0.00018742,2]
[368833733,1751375456624,-523.32,0.00018742,2]
[368833735,1751375456634,-460.0,0.00018742,2]
[368833736,1751375456643,-308.08,0.00018742,2]
[368833738,1751375456654,-1036.36,0.00018742,2]
[368833740,1751375456664,-460.0,0.00018742,2]
[368833742,1751375456674,-511.22,0.00018742,2]
[368833744,1751375456685,-529.41,0.00018742,2]
[368833746,1751375456694,-1113.07,0.00018742,2]
[368833748,1751375456704,-460.0,0.00018742,2]
[368833750,1751375456713,-460.0,0.00018742,2]
[368833752,1751375456723,-460.0,0.00018742,2]
[368833754,1751375456732,-460.0,0.00018742,2]
[368833756,1751375456742,-460.0,0.00018742,2]
[368833758,1751375456751,-460.0,0.00018742,2]
[368833760,1751375456762,-555.41,0.00018742,2]
[368833762,1751375456772,-460.0,0.00018742,2]
[368833764,1751375456782,-460.0,0.00018742,2]
[368833766,1751375456791,-554.69,0.00018742,2]
[368833768,1751375456801,-460.0,0.00018742,2]
[368833770,1751375456812,-460.0,0.00018742,2]
[368833772,1751375456822,-460.0,0.00018742,2]
[368833774,1751375456830,-460.0,0.00018742,2]
[368833776,1751375456840,-5098.55,0.00018742,2]
[368833778,1751375456850,-885.07,0.00018742,2]
[368833780,1751375456860,-460.0,0.00018742,2]
[368833782,1751375456869,-460.0,0.00018742,2]
[368833784,1751375456879,-460.0,0.00018742,2]
[368833786,1751375456889,-1093.64,0.00018742,2]
[368833788,1751375456898,-1367.97,0.00018742,2]
[368833790,1751375456908,-460.0,0.00018742,2]
[368833792,1751375456918,-460.0,0.00018742,2]
[368833794,1751375456927,-580.86,0.00018742,2]
[368833796,1751375456937,-200.0,0.00018742,2]
[368833798,1751375456946,-460.0,0.00018743,2]
[368833800,1751375456955,-460.0,0.00018743,2]
[368833802,1751375456965,-460.0,0.00018743,2]
[368833804,1751375456974,-562.33,0.00018743,2]
[368833806,1751375456983,-460.0,0.00018743,2]
[368833808,1751375456993,-460.0,0.00018743,2]
[368833809,1751375457003,-462.4,0.00018743,2]
[368833811,1751375457012,-460.0,0.00018743,2]
[368833813,1751375457021,-151.0,0.00018743,2]
[368833815,1751375457030,-151.0,0.00018743,2]
[368833817,1751375457040,-151.0,0.00018743,2]
[368833819,1751375457050,-460.0,0.00018743,2]
[368833821,1751375457059,-152.95318,0.00018743,2]
[368833823,1751375457068,-151.0,0.00018743,2]
[368833825,1751375457077,-199.59,0.00018743,2]
[368833827,1751375457087,-460.0,0.00018743,2]
[368833829,1751375457096,-241.229824,0.00018743,2]
[368833831,1751375457105,-241.229824,0.00018743,2]
[368833833,1751375457114,-460.0,0.00018743,2]
[368833835,1751375457123,-342.612274,0.00018743,2]
[368833837,1751375457133,-342.612274,0.00018743,2]
[368833839,1751375457142,-460.0,0.00018743,2]
[368833841,1751375457151,-460.0,0.00018743,2]
[368833843,1751375457160,-460.0,0.00018743,2]
[368833845,1751375457170,-428.25937947,0.00018743,2]
[368833847,1751375457180,-151.0,0.00018743,2]
[368833849,1751375457190,-460.0,0.00018743,2]
[368833851,1751375457199,-299.731675,0.00018743,2]
[368833853,1751375457209,-460.0,0.00018743,2]
[368833855,1751375457218,-460.0,0.00018743,2]
[368833857,1751375457227,-151.0,0.00018743,2]
[368833859,1751375457237,-299.731675,0.00018743,2]
[368833861,1751375457247,-902.98,0.00018743,2]
[368833863,1751375457257,-1429.29,0.00018743,2]
[368833864,1751375457266,-460.0,0.00018743,2]
[368833866,1751375457276,-460.0,0.00018743,2]
[368833868,1751375457285,-460.0,0.00018743,2]
[368833870,1751375457295,-460.0,0.00018743,2]
[368833872,1751375457304,-460.0,0.00018743,2]
[368833874,1751375457314,-629.44,0.00018743,2]
[368833876,1751375457323,-2335.14,0.00018743,2]
[368833878,1751375457333,-502.391511,0.00018743,2]
[368833880,1751375457344,-502.391511,0.00018743,2]
[368833882,1751375457354,-151.0,0.00018743,2]
[368833884,1751375457363,-460.0,0.00018743,2]
[368833886,1751375457373,-460.0,0.00018743,2]
[368833888,1751375457383,-460.0,0.00018743,2]
[368833890,1751375457393,-763.4,0.00018743,2]
[368833892,1751375457408,-786.9,0.00018743,2]
[368833894,1751375457418,-1640.44,0.00018743,2]
[368833896,1751375457427,-460.0,0.00018743,2]
[368833898,1751375457437,-460.0,0.00018743,2]
[368833900,1751375457448,-1403.77,0.00018743,2]
[368833902,1751375457457,-5761.22,0.00018743,2]
[368833904,1751375457467,-460.0,0.00018743,2]
[368833906,1751375457476,-590.88874012,0.00018743,2]
[368833908,1751375457486,-460.0,0.00018743,2]
[368833910,1751375457497,-1823.42,0.00018743,2]
[368833912,1751375457507,-460.0,0.00018743,2]
[368833914,1751375457517,-460.0,0.00018743,2]
[368833916,1751375457527,-460.0,0.00018744,2]
[368833918,1751375457536,-151.0,0.00018744,2]
[368833920,1751375457547,-151.0,0.00018744,2]
[368833922,1751375457556,-151.0,0.00018744,2]
[368833924,1751375457565,-460.0,0.00018745,2]
[368833926,1751375457575,-460.0,0.00018745,2]
[368833928,1751375457584,-464.13609312,0.00018745,2]
[368833930,1751375457594,-460.0,0.00018745,2]
[368833939,1751375457603,-460.0,0.00018745,2]
[368833941,1751375457681,-451.214272,0.00018745,2]
[368833943,1751375457691,-451.214272,0.00018745,2]
[368833945,1751375457700,-460.0,0.00018745,2]
[368833947,1751375457710,-303.976092,0.00018745,2]
[368833949,1751375457719,-303.976092,0.00018745,2]
[368833951,1751375457728,-404.5359249,0.00018745,2]
[368833953,1751375457738,-460.0,0.00018745,2]
[368833955,1751375457747,-176.92,0.00018747,2]
[368833957,1751375457756,-1500.0,0.00018768,2]
[368833959,1751375457766,-170.97248367,0.00018768,2]
[368833961,1751375457775,-500.0,0.00018768,2]
[368833963,1751375457784,-200.0,0.00018819,2]
[368833965,1751375457793,-207.4,0.0001882,2]
[368833967,1751375457802,-690.642,0.0001882,2]
[368833968,1751375457811,-500.0,0.0001882,2]
[368833970,1751375457821,-500.0,0.0001882,2]
[368833972,1751375457830,-500.0,0.0001882,2]
[368833974,1751375457839,-500.0,0.0001882,2]
[368833976,1751375457848,-500.0,0.0001882,2]
[368833978,1751375457857,-500.0,0.0001882,2]
[368833980,1751375457866,-500.0,0.0001882,2]
[368833982,1751375457875,-500.0,0.0001882,2]
[368833984,1751375457885,-152.61247216,0.0001882,2]
[368833986,1751375457895,-500.0,0.0001882,2]
[368833988,1751375457904,-500.0,0.0001882,2]
[368833990,1751375457913,-500.0,0.0001882,2]
[368833992,1751375457924,-500.0,0.0001882,2]
[368833994,1751375457933,-151.0,0.0001882,2]
[368833996,1751375457943,-500.0,0.0001882,2]
[368833998,1751375457953,-500.0,0.0001882,2]
[368833999,1751375457962,-151.0,0.0001882,2]
[368834000,1751375457972,-500.0,0.0001882,2]
[368834001,1751375457981,-500.0,0.0001882,2]
[368834002,1751375457991,-151.0,0.0001882,2]
[368834003,1751375458000,-500.0,0.0001882,2]
[368834004,1751375458009,-500.0,0.0001882,2]
[368834005,1751375458018,-500.0,0.0001882,2]
[368834006,1751375458028,-151.0,0.0001882,2]
[368834007,1751375458038,-5000.0,0.0001882,2]
[368834008,1751375458047,-500.0,0.0001882,2]
[368834009,1751375458056,-500.0,0.0001882,2]
[368834010,1751375458066,-500.0,0.0001882,2]
[368834011,1751375458075,-500.0,0.0001882,2]
[368834012,1751375458084,-500.0,0.0001882,2]
[368834013,1751375458094,-151.0,0.0001882,2]
[368834014,1751375458105,-500.0,0.0001882,2]
[368834015,1751375458114,-151.0,0.0001882,2]
[368834016,1751375458123,-500.0,0.0001882,2]
[368834017,1751375458133,-500.0,0.0001882,2]
[368834018,1751375458142,-151.0,0.0001882,2]
[368834019,1751375458152,-500.0,0.0001882,2]
[368834021,1751375458162,-500.0,0.0001882,2]
[368834023,1751375458171,-151.0,0.0001882,2]
[368834025,1751375458181,-500.0,0.0001882,2]
[368834027,1751375458191,-500.0,0.0001882,2]
[368834029,1751375458200,-151.0,0.0001882,2]
[368834031,1751375458210,-500.0,0.0001882,2]
[368834033,1751375458219,-813.52174997,0.0001882,2]
[368834035,1751375458229,-500.0,0.0001882,2]
[368834037,1751375458238,-151.0,0.0001882,2]
[368834039,1751375458248,-151.0,0.0001882,2]
[368834041,1751375458257,-151.0,0.0001882,2]
[368834043,1751375458266,-151.0,0.0001882,2]
[368834045,1751375458276,-151.0,0.0001882,2]
[368834047,1751375458286,-151.0,0.0001882,2]
[368834049,1751375458295,-25000.0,0.0001882,2]
[368834051,1751375458305,-151.0,0.0001882,2]
[368834053,1751375458314,-151.0,0.0001882,2]
[368834055,1751375458324,-151.0,0.0001882,2]
[368834057,1751375458333,-151.0,0.0001882,2]
[368834059,1751375458342,-151.0,0.0001882,2]
[368834061,1751375458351,-292.20588057,0.0001882,2]
[368834063,1751375458361,-795.82319864,0.0001882,2]
[368834065,1751375458371,-151.0,0.00018821,2]
[368834067,1751375458380,-716.195754,0.00018875,2]
[368834069,1751375458390,-151.0,0.000189,2]
[368834071,1751375458400,-151.0,0.000189,2]
[368834072,1751375458411,-152.42072857,0.000189,2]
[368834074,1751375458423,-151.0,0.000189,2]
[368834076,1751375458432,-8464.3154177,0.000189,2]
[368834078,1751375458442,-2046.50289857,0.000189,2]
[368834081,1751375458452,-742.6949969,0.0001893,2]
[368834083,1751375458463,-420.0,0.00018962,2]
[368834085,1751375458473,-633.0,0.00018965,2]
[368834086,1751375458482,-770.17471178,0.00018985,2]
[368834088,1751375458493,-190.27,0.00019014,2]
[368834090,1751375458503,-460.0,0.00019014,2]
[368834092,1751375458513,-460.0,0.00019014,2]
[368834094,1751375458522,-2375.85,0.00019014,2]
[368834096,1751375458532,-460.0,0.00019014,2]
[368834098,1751375458542,-422.56773258,0.00019015,2]
[368834100,1751375458551,-2481.69,0.00019015,2]
[368834102,1751375458562,-595.26,0.00019015,2]
[368834105,1751375458573,-151.0,0.00019015,2]
[368834107,1751375458582,-151.0,0.00019015,2]
[368834109,1751375458592,-517.43,0.00019015,2]
[368834111,1751375458601,-151.0,0.00019015,2]
[368834113,1751375458611,-151.0,0.00019015,2]
[368834114,1751375458622,-2638.53,0.00019015,2]
[368834116,1751375458631,-460.0,0.00019015,2]
[368834119,1751375458641,-2689.06,0.00019015,2]
[368834121,1751375458651,-642.95,0.00019015,2]
[368834122,1751375458661,-240.56344,0.00019015,2]
[368834125,1751375458671,-460.0,0.00019015,2]
[368834127,1751375458681,-240.56344,0.00019015,2]
[368834128,1751375458691,-151.0,0.00019015,2]
[368834131,1751375458700,-151.0,0.00019015,2]
[368834132,1751375458710,-151.0,0.00019015,2]
[368834134,1751375458719,-151.0,0.00019015,2]
[368834136,1751375458728,-2422.25,0.00019015,2]
[368834138,1751375458738,-151.0,0.00019015,2]
[368834140,1751375458747,-329.834907,0.00019015,2]
[368834142,1751375458757,-329.834907,0.00019015,2]
[368834144,1751375458767,-151.0,0.00019015,2]
[368834147,1751375458777,-3359.88,0.00019015,2]
[368834149,1751375458789,-217.838063,0.00019015,2]
[368834150,1751375458798,-460.0,0.00019015,2]
[368834152,1751375458808,-460.0,0.00019015,2]
[368834154,1751375458818,-1616.51,0.00019015,2]
[368834157,1751375458827,-460.0,0.00019015,2]
[368834158,1751375458836,-1927.65,0.00019015,2]
[368834160,1751375458846,-460.0,0.00019015,2]
[368834163,1751375458855,-705.67,0.00019015,2]
[368834165,1751375458866,-460.0,0.00019016,2]
[368834166,1751375458875,-460.0,0.00019016,2]
[368834169,1751375458885,-460.0,0.00019016,2]
[368834171,1751375458894,-460.0,0.00019016,2]
[368834172,1751375458904,-775.82,0.00019016,2]
[368834174,1751375458913,-460.0,0.00019016,2]
[368834176,1751375458924,-460.0,0.00019016,2]
[368834178,1751375458934,-460.0,0.00019016,2]
[368834180,1751375458944,-460.0,0.00019016,2]
[368834182,1751375458953,-460.0,0.00019016,2]
[368834184,1751375458962,-1036.36,0.00019016,2]
[368834186,1751375458972,-192.52,0.00019016,2]
[368834188,1751375458983,-511.22,0.00019016,2]
[368834190,1751375458997,-529.41,0.00019016,2]
[368834192,1751375459009,-1113.07,0.00019016,2]
[368834194,1751375459019,-460.0,0.00019016,2]
[368834196,1751375459028,-460.0,0.00019016,2]
[368834198,1751375459038,-460.0,0.00019016,2]
[368834200,1751375459048,-555.41,0.00019016,2]
[368834202,1751375459057,-460.0,0.00019016,2]
[368834204,1751375459067,-233.85,0.00019016,2]
[368834206,1751375459077,-554.69,0.00019016,2]
[368834208,1751375459086,-460.0,0.00019016,2]
[368834210,1751375459096,-460.0,0.00019016,2]
[368834212,1751375459105,-460.0,0.00019016,2]
[368834215,1751375459115,-460.0,0.00019016,2]
[368834217,1751375459128,-5098.55,0.00019016,2]
[368834220,1751375459138,-885.07,0.00019016,2]
[368834222,1751375459159,-460.0,0.00019016,2]
[368834224,1751375459170,-460.0,0.00019016,2]
[368834226,1751375459180,-460.0,0.00019016,2]
[368834228,1751375459192,-1093.64,0.00019016,2]
[368834230,1751375459202,-1367.97,0.00019016,2]
[368834232,1751375459212,-460.0,0.00019016,2]
[368834234,1751375459223,-460.0,0.00019016,2]
[368834236,1751375459233,-580.86,0.00019016,2]
[368834238,1751375459244,-453.2,0.00019017,2]
[368834240,1751375459255,-460.0,0.00019017,2]
[368834243,1751375459265,-460.0,0.00019017,2]
[368834245,1751375459274,-562.33,0.00019017,2]
[368834247,1751375459284,-460.0,0.00019017,2]
[368834249,1751375459294,-460.0,0.00019017,2]
[368834251,1751375459304,-187.36,0.00019017,2]
[368834253,1751375459314,-460.0,0.00019017,2]
[368834255,1751375459325,-460.0,0.00019017,2]
[368834257,1751375459335,-284.109259,0.00019017,2]
[368834259,1751375459346,-152.463533,0.00019017,2]
[368834261,1751375459356,-467.73,0.00019017,2]
[368834263,1751375459365,-296.927388,0.00019017,2]
[368834265,1751375459375,-460.0,0.00019017,2]
[368834267,1751375459386,-190.315045,0.00019017,2]
[368834269,1751375459396,-190.315045,0.00019017,2]
[368834271,1751375459408,-839.715903,0.00019017,2]
[368834273,1751375459418,-839.715903,0.00019017,2]
[368834275,1751375459428,-531.621476,0.00019017,2]
[368834277,1751375459438,-460.0,0.00019017,2]
[368834279,1751375459449,-902.98,0.00019017,2]
[368834281,1751375459459,-1429.29,0.00019017,2]
[368834283,1751375459469,-460.0,0.00019017,2]
[368834285,1751375459479,-460.0,0.00019017,2]
[368834287,1751375459491,-460.0,0.00019017,2]
[368834289,1751375459503,-629.44,0.00019017,2]
[368834292,1751375459513,-2335.14,0.00019017,2]
[368834294,1751375459522,-460.0,0.00019017,2]
[368834296,1751375459532,-460.0,0.00019017,2]
[368834298,1751375459542,-460.0,0.00019017,2]
[368834300,1751375459552,-763.4,0.00019017,2]
[368834302,1751375459562,-786.9,0.00019017,2]
[368834304,1751375459572,-1640.44,0.00019017,2]
[368834306,1751375459582,-460.0,0.00019017,2]
[368834308,1751375459591,-494.77686047,0.00019017,2]
[368834310,1751375459601,-1403.77,0.00019017,2]
[368834312,1751375459611,-5761.22,0.00019017,2]
[368834313,1751375459626,-460.0,0.00019017,2]
[368834315,1751375459638,-460.0,0.00019017,2]
[368834318,1751375459648,-1823.42,0.00019017,2]
[368834319,1751375459658,-460.0,0.00019017,2]
[368834321,1751375459669,-460.0,0.00019017,2]
[368834324,1751375459679,-460.0,0.00019019,2]
[368834326,1751375459689,-460.0,0.00019019,2]
[368834328,1751375459699,-460.0,0.00019019,2]
[368834329,1751375459708,-387.18480177,0.00019019,2]
[368834332,1751375459718,-151.0,0.0001902,2]
[368834334,1751375459729,-151.0,0.0001902,2]
[368834336,1751375459739,-151.0,0.0001902,2]
[368834338,1751375459748,-798.67117612,0.0001904,2]
[368834340,1751375459757,-581.117,0.0001906,2]
[368834342,1751375459767,-178.12474129,0.00019065,2]
[368834344,1751375459776,-828.22200964,0.00019095,2]
[368834346,1751375459786,-151.0,0.000191,2]
[368834348,1751375459795,-700.0,0.00019109,2]
[368834350,1751375459805,-151.0,0.00019141,2]
[368834352,1751375459814,-151.0,0.00019141,2]
[368834367,1751375459956,-270.806773,0.00019141,2]
[368834370,1751375459966,-151.0,0.00019141,2]
[368834372,1751375459975,-270.806773,0.00019141,2]
[368834374,1751375459984,-151.0,0.00019141,2]
[368834376,1751375459994,-151.0,0.00019141,2]
[368834378,1751375460003,-151.0,0.00019141,2]
[368834380,1751375460014,-616.479557,0.00019141,2]
[368834382,1751375460023,-616.479557,0.00019141,2]
[368834384,1751375460033,-756.105498,0.00019141,2]
[368834386,1751375460042,-756.105498,0.00019141,2]
[368834387,1751375460052,-8464.31541756,0.00019141,2]
[368834390,1751375460062,-858.86622399,0.0001915,2]
[368834391,1751375460072,-151.0,0.00019178,2]
[368834394,1751375460082,-151.0,0.00019178,2]
[368834396,1751375460092,-196.0915788,0.00019178,2]
[368834397,1751375460101,-365.158444,0.00019178,2]
[368834400,1751375460111,-151.0,0.00019205,2]
[368834402,1751375460120,-151.0,0.00019205,2]
[368834404,1751375460130,-890.64427428,0.00019205,2]
[368834406,1751375460139,-151.0,0.00019233,2]
[368834408,1751375460150,-151.0,0.00019233,2]
[368834410,1751375460160,-198.88235794,0.0001926,2]
[368834412,1751375460169,-264.8598708,0.0001926,2]
[368834413,1751375460179,-923.59811243,0.0001926,2]
[368834416,1751375460189,-460.0,0.00019288,2]
[368834418,1751375460199,-460.0,0.00019288,2]
[368834420,1751375460209,-2375.85,0.00019288,2]
[368834422,1751375460219,-460.0,0.00019288,2]
[368834424,1751375460228,-2481.69,0.00019289,2]
[368834426,1751375460240,-595.26,0.00019289,2]
[368834428,1751375460251,-517.43,0.00019289,2]
[368834430,1751375460261,-460.0,0.00019289,2]
[368834432,1751375460271,-2638.53,0.00019289,2]
[368834434,1751375460281,-2689.06,0.00019289,2]
[368834436,1751375460294,-642.95,0.00019289,2]
[368834438,1751375460303,-460.0,0.00019289,2]
[368834440,1751375460313,-2422.25,0.00019289,2]
[368834442,1751375460323,-3359.88,0.00019289,2]
[368834444,1751375460333,-460.0,0.00019289,2]
[368834446,1751375460343,-460.0,0.00019289,2]
[368834448,1751375460352,-1616.51,0.00019289,2]
[368834450,1751375460362,-151.0,0.00019289,2]
[368834452,1751375460371,-460.0,0.00019289,2]
[368834454,1751375460381,-151.0,0.00019289,2]
[368834456,1751375460390,-1927.65,0.00019289,2]
[368834458,1751375460401,-151.0,0.00019289,2]
[368834460,1751375460415,-460.0,0.00019289,2]
[368834462,1751375460426,-705.67,0.00019289,2]
[368834464,1751375460435,-227.32,0.0001929,2]
[368834466,1751375460444,-460.0,0.0001929,2]
[368834468,1751375460454,-460.0,0.0001929,2]
[368834470,1751375460465,-460.0,0.0001929,2]
[368834472,1751375460475,-775.82,0.0001929,2]
[368834474,1751375460486,-460.0,0.0001929,2]
[368834476,1751375460497,-460.0,0.0001929,2]
[368834477,1751375460506,-460.0,0.0001929,2]
[368834478,1751375460515,-525.33,0.0001929,2]
[368834479,1751375460525,-460.0,0.0001929,2]
[368834480,1751375460534,-451.214272,0.0001929,2]
[368834481,1751375460545,-1036.36,0.0001929,2]
[368834482,1751375460554,-451.214272,0.0001929,2]
[368834483,1751375460563,-511.22,0.0001929,2]
[368834484,1751375460572,-529.41,0.0001929,2]
[368834486,1751375460582,-303.976092,0.0001929,2]
[368834488,1751375460591,-303.976092,0.0001929,2]
[368834490,1751375460600,-1113.07,0.0001929,2]
[368834492,1751375460610,-460.0,0.0001929,2]
[368834494,1751375460620,-555.41,0.0001929,2]
[368834496,1751375460632,-460.0,0.0001929,2]
[368834498,1751375460643,-554.69,0.0001929,2]
[368834500,1751375460654,-460.0,0.0001929,2]
[368834502,1751375460664,-460.0,0.0001929,2]
[368834504,1751375460675,-460.0,0.0001929,2]
[368834506,1751375460687,-5098.55,0.0001929,2]
[368834508,1751375460697,-885.07,0.0001929,2]
[368834510,1751375460707,-460.0,0.0001929,2]
[368834512,1751375460717,-310.64200539,0.0001929,2]
[368834515,1751375460728,-460.0,0.0001929,2]
[368834517,1751375460738,-1093.64,0.0001929,2]
[368834519,1751375460747,-1367.97,0.0001929,2]
[368834521,1751375460757,-460.0,0.0001929,2]
[368834523,1751375460767,-580.86,0.0001929,2]
[368834525,1751375460776,-200.0,0.00019291,2]
[368834527,1751375460785,-460.0,0.00019291,2]
[368834529,1751375460794,-460.0,0.00019291,2]
[368834531,1751375460803,-562.33,0.00019291,2]
[368834533,1751375460813,-460.0,0.00019291,2]
[368834535,1751375460822,-460.0,0.00019291,2]
[368834537,1751375460834,-460.0,0.00019291,2]
[368834539,1751375460844,-234.08,0.00019291,2]
[368834541,1751375460853,-460.0,0.00019291,2]
[368834543,1751375460862,-151.0,0.00019291,2]
[368834545,1751375460872,-299.731675,0.00019291,2]
[368834547,1751375460881,-597.87,0.00019291,2]
[368834549,1751375460891,-151.0,0.00019291,2]
[368834551,1751375460901,-299.731675,0.00019291,2]
[368834553,1751375460911,-902.98,0.00019291,2]
[368834555,1751375460921,-1429.29,0.00019291,2]
[368834557,1751375460930,-460.0,0.00019291,2]
[368834559,1751375460939,-460.0,0.00019291,2]
[368834561,1751375460949,-460.0,0.00019291,2]
[368834563,1751375460959,-629.44,0.00019291,2]
[368834565,1751375460968,-2335.14,0.00019291,2]
[368834567,1751375460978,-502.391511,0.00019291,2]
[368834569,1751375460987,-502.391511,0.00019291,2]
[368834571,1751375460997,-156.446501,0.00019291,2]
[368834573,1751375461006,-460.0,0.00019291,2]
[368834575,1751375461016,-460.0,0.00019291,2]
[368834577,1751375461026,-600.76374186,0.00019291,2]
[368834579,1751375461035,-763.4,0.00019291,2]
[368834581,1751375461044,-786.9,0.00019291,2]
[368834583,1751375461054,-1640.44,0.00019291,2]
[368834585,1751375461063,-460.0,0.00019291,2]
[368834587,1751375461073,-1403.77,0.00019291,2]
[368834589,1751375461082,-5761.22,0.00019291,2]
[368834591,1751375461092,-460.0,0.00019291,2]
[368834594,1751375461101,-460.0,0.00019291,2]
[368834596,1751375461111,-1823.42,0.00019291,2]
[368834598,1751375461120,-460.0,0.00019291,2]
[368834600,1751375461129,-151.0,0.00019292,2]
[368834602,1751375461139,-152.69692,0.00019292,2]
[368834604,1751375461148,-151.0,0.00019292,2]
[368834606,1751375461158,-151.0,0.00019292,2]
[368834608,1751375461167,-241.229824,0.00019292,2]
[368834610,1751375461176,-241.229824,0.00019292,2]
[368834612,1751375461185,-342.612274,0.00019292,2]
[368834613,1751375461195,-342.612274,0.00019292,2]
[368834616,1751375461204,-151.0,0.00019293,2]
[368834617,1751375461213,-151.0,0.00019293,2]
[368834620,1751375461223,-151.0,0.00019293,2]
[368834622,1751375461234,-460.0,0.00019293,2]
[368834624,1751375461245,-151.0,0.000193,2]
[368834626,1751375461256,-957.77124259,0.00019315,2]
[368834627,1751375461265,-160.0,0.00019328,2]
[368834629,1751375461275,-200.0,0.00019328,2]
[368834631,1751375461284,-151.0,0.00019329,2]
[368834634,1751375461294,-151.0,0.00019329,2]
[368834636,1751375461303,-151.0,0.00019329,2]
[368834638,1751375461313,-151.0,0.00019329,2]
[368834640,1751375461323,-296.927388,0.00019329,2]
[368834642,1751375461332,-151.0,0.00019329,2]
[368834644,1751375461342,-190.315045,0.00019329,2]
[368834646,1751375461351,-190.315045,0.00019329,2]
[368834648,1751375461360,-839.715903,0.00019329,2]
[368834650,1751375461369,-531.621476,0.00019329,2]
[368834652,1751375461379,-839.715903,0.00019329,2]
[368834654,1751375461388,-531.621476,0.00019329,2]
[368834656,1751375461398,-151.0,0.00019329,2]
[368834658,1751375461408,-151.0,0.00019329,2]
[368834660,1751375461419,-151.0,0.00019329,2]
[368834662,1751375461428,-151.0,0.00019329,2]
[368834664,1751375461437,-240.56344,0.00019329,2]
[368834666,1751375461448,-240.56344,0.00019329,2]
[368834668,1751375461459,-151.0,0.00019329,2]
[368834670,1751375461468,-151.0,0.00019329,2]
[368834672,1751375461477,-151.0,0.00019329,2]
[368834674,1751375461487,-151.0,0.00019329,2]
[368834676,1751375461498,-329.834907,0.00019329,2]
[368834678,1751375461508,-329.834907,0.00019329,2]
[368834680,1751375461518,-151.0,0.00019329,2]
[368834682,1751375461527,-100000.0,0.00019329,2]
[368834684,1751375461537,-151.0,0.00019368,2]
[368834686,1751375461546,-151.0,0.00019368,2]
[368834688,1751375461556,-270.806773,0.00019368,2]
[368834690,1751375461565,-270.806773,0.00019368,2]
[368834692,1751375461574,-230.187499,0.00019368,2]
[368834694,1751375461584,-279.838848,0.00019368,2]
[368834696,1751375461593,-151.0,0.00019368,2]
[368834698,1751375461603,-151.0,0.00019368,2]
[368834700,1751375461613,-616.479557,0.00019368,2]
[368834702,1751375461623,-616.479557,0.00019368,2]
[368834704,1751375461632,-756.105498,0.00019368,2]
[368834706,1751375461641,-756.105498,0.00019368,2]
[368834708,1751375461650,-451.214272,0.00019368,2]
[368834710,1751375461660,-451.214272,0.00019368,2]
[368834712,1751375461669,-303.976092,0.00019368,2]
[368834714,1751375461678,-303.976092,0.00019368,2]
[368834716,1751375461688,-151.0,0.00019368,2]
[368834718,1751375461698,-151.0,0.00019368,2]
[368834720,1751375461707,-151.0,0.00019368,2]
[368834722,1751375461716,-5000.0,0.00019368,2]